[Event "European Individual Women's Chess Championship 2017"]
[Site "Riga LAT"]
[Date "2017.04.21"]
[Round "10.53"]
[White "Semenova, Elena"]
[Black "Chan, Naruna"]
[Result "1-0"]
[LiveChessVersion "1.4.8"]
[BlackElo "1981"]
[WhiteElo "2212"]
[ECO "B31"]
[TimeControl "40/5400:1800+30"]

1. e4 {[%clk 1:30:57]} c5 {[%clk 1:30:54]} 2. Nf3 {[%clk 1:31:21]} Nc6
{[%clk 1:31:18]} 3. Bb5 {[%clk 1:31:46]} g6 {[%clk 1:27:20]} 4. Bxc6
{[%clk 1:31:59]} bxc6 {[%clk 1:27:44]} 5. O-O {[%clk 1:29:44]} Bg7
{[%clk 1:28:07]} 6. c3 {[%clk 1:26:00]} Nh6 {[%clk 1:25:57]} 7. d3
{[%clk 1:17:30]} f6 {[%clk 1:23:28]} 8. h3 {[%clk 1:13:54]} Nf7 {[%clk 1:23:43]}
9. Be3 {[%clk 1:10:36]} d6 {[%clk 1:21:35]} 10. Nh2 {[%clk 1:08:45]} e5
{[%clk 1:14:02]} 11. d4 {[%clk 1:04:34]} cxd4 {[%clk 1:11:06]} 12. cxd4
{[%clk 1:04:59]} O-O {[%clk 1:08:45]} 13. Nc3 {[%clk 1:03:27]} f5
{[%clk 1:00:26]} 14. dxe5 {[%clk 0:56:45]} Nxe5 {[%clk 0:59:08]} 15. Qb3+
{[%clk 0:55:44]} Kh8 {[%clk 0:59:08]} 16. f4 {[%clk 0:55:01]} Nf7
{[%clk 0:57:15]} 17. Nf3 {[%clk 0:45:51]} fxe4 {[%clk 0:46:10]} 18. Nxe4
{[%clk 0:46:03]} Qe7 {[%clk 0:46:21]} 19. Neg5 {[%clk 0:39:04]} Nxg5
{[%clk 0:42:12]} 20. Nxg5 {[%clk 0:39:08]} h6 {[%clk 0:34:03]} 21. Nf3
{[%clk 0:39:25]} Be6 {[%clk 0:34:17]} 22. Qa3 {[%clk 0:38:12]} Rab8
{[%clk 0:26:43]} 23. Ne5 {[%clk 0:36:12]} Qe8 {[%clk 0:24:01]} 24. Qxd6
{[%clk 0:35:07]} Rxb2 {[%clk 0:22:01]} 25. Bd4 {[%clk 0:28:28]} Rb8
{[%clk 0:22:02]} 26. Nxc6 {[%clk 0:25:14]} Rc8 {[%clk 0:20:29]} 27. Ne7
{[%clk 0:24:30]} Qxe7 {[%clk 0:17:20]} 28. Qxe7 {[%clk 0:23:42]} Bxd4+
{[%clk 0:17:47]} 29. Kh1 {[%clk 0:23:25]} Bxa1 {[%clk 0:17:02]} 30. Rxa1
{[%clk 0:20:46]} Rce8 {[%clk 0:15:53]} 31. Qxa7 {[%clk 0:20:49]} Rxf4
{[%clk 0:14:44]} 32. Rc1 {[%clk 0:18:03]} Rf7 {[%clk 0:14:10]} 33. Qe3
{[%clk 0:17:28]} Kh7 {[%clk 0:14:24]} 34. a4 {[%clk 0:17:10]} Rfe7
{[%clk 0:12:54]} 35. Qd4 {[%clk 0:16:58]} Rd7 {[%clk 0:13:01]} 36. Qf6
{[%clk 0:12:29]} Rf7 {[%clk 0:11:49]} 37. Qe5 {[%clk 0:12:12]} Bd7
{[%clk 0:11:36]} 38. Qd4 {[%clk 0:11:58]} Bf5 {[%clk 0:10:47]} 39. a5
{[%clk 0:10:29]} Be4 {[%clk 0:09:13]} 40. a6 {[%clk 0:37:48]} Ba8
{[%clk 0:38:44]} 41. Rc2 {[%clk 0:36:23]} g5 {[%clk 0:31:26]} 42. Rb2
{[%clk 0:34:52]} Ref8 {[%clk 0:24:17]} 43. Kh2 {[%clk 0:31:59]} Rf4
{[%clk 0:23:08]} 44. Qd3+ {[%clk 0:30:38]} Be4 {[%clk 0:22:13]} 45. Rb7+
{[%clk 0:25:58]} Kg6 {[%clk 0:20:52]} 46. Rb6+ {[%clk 0:25:54]} Kh7
{[%clk 0:21:10]} 47. Qd6 {[%clk 0:25:04]} 1-0

[Event "European Individual Women's Chess Championship 2017"]
[Site "Riga LAT"]
[Date "2017.04.21"]
[Round "10.54"]
[White "Kazarian, Anna-Maja"]
[Black "Otikova, Elina"]
[Result "1-0"]
[LiveChessVersion "1.4.8"]
[BlackElo "2049"]
[WhiteElo "2257"]
[ECO "C96"]
[TimeControl "40/5400:1800+30"]

1. e4 {[%clk 1:30:59]} e5 {[%clk 1:30:50]} 2. Nf3 {[%clk 1:31:25]} Nc6
{[%clk 1:31:10]} 3. Bb5 {[%clk 1:31:50]} a6 {[%clk 1:31:12]} 4. Ba4
{[%clk 1:32:15]} Nf6 {[%clk 1:31:25]} 5. O-O {[%clk 1:32:40]} Be7
{[%clk 1:31:10]} 6. Re1 {[%clk 1:32:12]} b5 {[%clk 1:31:30]} 7. Bb3
{[%clk 1:32:39]} d6 {[%clk 1:31:49]} 8. c3 {[%clk 1:33:04]} O-O {[%clk 1:32:11]}
9. h3 {[%clk 1:32:07]} Na5 {[%clk 1:32:11]} 10. Bc2 {[%clk 1:32:33]} d5
{[%clk 1:31:42]} 11. Nxe5 {[%clk 1:08:09]} dxe4 {[%clk 1:30:55]} 12. b4
{[%clk 1:02:52]} Bd6 {[%clk 1:17:12]} 13. d4 {[%clk 1:00:15]} exd3
{[%clk 1:11:28]} 14. Qxd3 {[%clk 1:00:06]} Bxe5 {[%clk 1:09:51]} 15. Rxe5
{[%clk 0:59:19]} Nc4 {[%clk 0:51:39]} 16. Rc5 {[%clk 0:54:04]} Bb7
{[%clk 0:29:56]} 17. Bg5 {[%clk 0:32:56]} Qxd3 {[%clk 0:30:19]} 18. Bxd3
{[%clk 0:33:24]} Nb2 {[%clk 0:22:24]} 19. Bc2 {[%clk 0:24:56]} Be4
{[%clk 0:21:40]} 20. Bb3 {[%clk 0:24:11]} c6 {[%clk 0:19:19]} 21. Bxf6
{[%clk 0:19:45]} gxf6 {[%clk 0:19:46]} 22. Nd2 {[%clk 0:19:54]} Bd5
{[%clk 0:16:34]} 23. Bxd5 {[%clk 0:19:44]} cxd5 {[%clk 0:17:03]} 24. Rxd5
{[%clk 0:19:06]} Rad8 {[%clk 0:16:06]} 25. Ne4 {[%clk 0:18:20]} Kg7
{[%clk 0:14:28]} 26. Rxd8 {[%clk 0:13:11]} Rxd8 {[%clk 0:14:56]} 27. Nc5
{[%clk 0:13:33]} Rd6 {[%clk 0:14:31]} 28. a4 {[%clk 0:12:59]} Rd2
{[%clk 0:09:23]} 29. axb5 {[%clk 0:07:40]} axb5 {[%clk 0:09:51]} 30. Ra5
{[%clk 0:07:49]} Nd1 {[%clk 0:09:40]} 31. Rxb5 {[%clk 0:06:15]} Nxc3
{[%clk 0:09:49]} 32. Rb7 {[%clk 0:06:18]} Rb2 {[%clk 0:08:04]} 33. Nd3
{[%clk 0:04:24]} Rd2 {[%clk 0:07:29]} 34. Nf4 {[%clk 0:04:26]} Rb2
{[%clk 0:06:48]} 35. h4 {[%clk 0:03:26]} Na2 {[%clk 0:05:41]} 36. b5
{[%clk 0:03:18]} Nc3 {[%clk 0:05:34]} 37. b6 {[%clk 0:03:21]} Rb4
{[%clk 0:05:43]} 38. g3 {[%clk 0:03:21]} Na4 {[%clk 0:05:53]} 39. Ne6+
{[%clk 0:02:46]} Kg6 {[%clk 0:04:56]} 40. Nf8+ {[%clk 0:32:37]} Kg7
{[%clk 0:32:19]} 41. Nd7 {[%clk 0:32:34]} Kg6 {[%clk 0:31:37]} 42. Rb8
{[%clk 0:32:17]} Kg7 {[%clk 0:30:51]} 43. b7 {[%clk 0:29:29]} Rb5
{[%clk 0:28:50]} 44. Kf1 {[%clk 0:28:58]} Nb2 {[%clk 0:29:10]} 45. Nc5
{[%clk 0:26:37]} Rxc5 {[%clk 0:29:13]} 46. Rg8+ {[%clk 0:24:31]} Kxg8
{[%clk 0:29:38]} 47. b8=Q+ {[%clk 0:24:55]} Kg7 {[%clk 0:30:03]} 48. Qxb2
{[%clk 0:25:21]} h6 {[%clk 0:30:06]} 49. Qd4 {[%clk 0:24:25]} Re5
{[%clk 0:30:19]} 50. f4 {[%clk 0:22:42]} Re6 {[%clk 0:30:36]} 51. g4
{[%clk 0:22:30]} Kh7 {[%clk 0:30:46]} 52. Kf2 {[%clk 0:22:33]} Kg8
{[%clk 0:30:28]} 53. Kf3 {[%clk 0:17:08]} Kh7 {[%clk 0:30:46]} 54. f5
{[%clk 0:15:41]} Re5 {[%clk 0:30:21]} 55. Kf4 {[%clk 0:16:06]} Kg7
{[%clk 0:29:35]} 56. Qxe5 {[%clk 0:15:50]} fxe5+ {[%clk 0:30:03]} 57. Kxe5
{[%clk 0:16:12]} Kf8 {[%clk 0:28:33]} 58. Kf6 {[%clk 0:16:32]} Kg8
{[%clk 0:28:46]} 59. Ke7 {[%clk 0:16:49]} 1-0

[Event "European Individual Women's Chess Championship 2017"]
[Site "Riga LAT"]
[Date "2017.04.21"]
[Round "10.55"]
[White "Osmanodja, Filiz"]
[Black "De Seroux, Camille"]
[Result "1-0"]
[LiveChessVersion "1.4.8"]
[BlackElo "2122"]
[WhiteElo "2370"]
[ECO "B63"]
[TimeControl "40/5400:1800+30"]

1. e4 {[%clk 1:30:56]} c5 {[%clk 1:30:53]} 2. Nf3 {[%clk 1:31:23]} Nc6
{[%clk 1:31:16]} 3. d4 {[%clk 1:31:50]} cxd4 {[%clk 1:31:40]} 4. Nxd4
{[%clk 1:32:18]} Nf6 {[%clk 1:32:01]} 5. Nc3 {[%clk 1:32:45]} d6 {[%clk 1:32:24]}
6. Bg5 {[%clk 1:33:10]} e6 {[%clk 1:32:44]} 7. Qd2 {[%clk 1:33:36]} Qb6
{[%clk 1:33:05]} 8. Nb3 {[%clk 1:34:03]} Be7 {[%clk 1:33:26]} 9. Bxf6
{[%clk 1:34:20]} gxf6 {[%clk 1:33:13]} 10. a4 {[%clk 1:34:25]} Na5
{[%clk 1:28:43]} 11. Bb5+ {[%clk 1:34:47]} Bd7 {[%clk 1:28:39]} 12. Bxd7+
{[%clk 1:35:07]} Kxd7 {[%clk 1:29:01]} 13. Nxa5 {[%clk 1:35:34]} Qxa5
{[%clk 1:28:54]} 14. O-O {[%clk 1:35:56]} Rac8 {[%clk 1:19:36]} 15. Ra3
{[%clk 1:35:38]} a6 {[%clk 0:52:59]} 16. Rb3 {[%clk 1:30:02]} Rc7
{[%clk 0:51:43]} 17. Qh6 {[%clk 1:28:36]} Qg5 {[%clk 0:45:03]} 18. Qh3
{[%clk 1:28:12]} Ke8 {[%clk 0:40:38]} 19. f4 {[%clk 1:27:55]} Qc5+
{[%clk 0:38:46]} 20. Kh1 {[%clk 1:28:24]} h5 {[%clk 0:35:23]} 21. Qf3
{[%clk 1:23:23]} h4 {[%clk 0:32:20]} 22. e5 {[%clk 1:04:06]} dxe5
{[%clk 0:19:05]} 23. Rxb7 {[%clk 0:51:42]} Rxb7 {[%clk 0:13:40]} 24. Qxb7
{[%clk 0:52:09]} Kf8 {[%clk 0:11:26]} 25. Qxa6 {[%clk 0:51:59]} exf4
{[%clk 0:10:29]} 26. Rxf4 {[%clk 0:49:14]} Qg5 {[%clk 0:09:16]} 27. Qf1
{[%clk 0:35:23]} f5 {[%clk 0:08:57]} 28. a5 {[%clk 0:34:03]} Kg7 {[%clk 0:06:48]}
29. h3 {[%clk 0:29:23]} Bd6 {[%clk 0:04:42]} 30. Rf3 {[%clk 0:29:48]} Ra8
{[%clk 0:03:55]} 31. Qd1 {[%clk 0:23:38]} Qe7 {[%clk 0:00:54]} 32. Qd4+
{[%clk 0:16:09]} Kg8 {[%clk 0:01:05]} 33. Rd3 {[%clk 0:09:31]} Bc7
{[%clk 0:00:34]} 34. Ne2 {[%clk 0:02:59]} Rxa5 {[%clk 0:00:37]} 35. c4
{[%clk 0:00:51]} Qb4 {[%clk 0:00:33]} 36. Rd1 {[%clk 0:00:49]} Qe7
{[%clk 0:00:42]} 37. Ng1 {[%clk 0:00:35]} Qg5 {[%clk 0:00:38]} 38. Nf3
{[%clk 0:00:41]} Qg3 {[%clk 0:00:37]} 39. Qxh4 {[%clk 0:00:45]} Qxh4
{[%clk 0:00:39]} 40. Nxh4 {[%clk 0:31:14]} Ra2 {[%clk 0:30:39]} 41. Rb1
{[%clk 0:30:24]} Bg3 {[%clk 0:24:36]} 42. Nf3 {[%clk 0:29:41]} e5
{[%clk 0:21:37]} 43. Kg1 {[%clk 0:18:47]} e4 {[%clk 0:14:58]} 44. Nd4
{[%clk 0:19:15]} Be5 {[%clk 0:13:29]} 45. Nxf5 {[%clk 0:19:35]} Bxb2
{[%clk 0:12:56]} 46. Re1 {[%clk 0:17:52]} Ba3 {[%clk 0:07:00]} 47. Rxe4
{[%clk 0:18:07]} Bc5+ {[%clk 0:07:18]} 48. Kh2 {[%clk 0:18:00]} Rc2
{[%clk 0:07:11]} 49. h4 {[%clk 0:17:20]} Kh7 {[%clk 0:04:54]} 50. h5
{[%clk 0:15:25]} Rf2 {[%clk 0:03:15]} 51. Re5 {[%clk 0:15:50]} Ba7
{[%clk 0:01:24]} 52. Kh3 {[%clk 0:14:19]} Rf4 {[%clk 0:01:12]} 53. c5
{[%clk 0:08:44]} Rc4 {[%clk 0:01:03]} 54. Re7 {[%clk 0:08:42]} Bxc5
{[%clk 0:00:58]} 55. Rxf7+ {[%clk 0:09:06]} Kh8 {[%clk 0:01:23]} 56. h6
{[%clk 0:06:57]} Bf2 {[%clk 0:01:04]} 57. g4 {[%clk 0:05:10]} Rc3+
{[%clk 0:00:37]} 58. Kg2 {[%clk 0:05:37]} Be1 {[%clk 0:00:47]} 59. g5
{[%clk 0:03:35]} Rc2+ {[%clk 0:00:50]} 60. Kf3 {[%clk 0:03:17]} Bd2 61. g6
{[%clk 0:02:29]} Bxh6 {[%clk 0:00:47]} 62. Rh7+ {[%clk 0:02:45]} Kg8
{[%clk 0:01:12]} 63. Nxh6+ {[%clk 0:03:03]} Kf8 {[%clk 0:01:26]} 64. g7+
{[%clk 0:03:21]} 1-0

[Event "European Individual Women's Chess Championship 2017"]
[Site "Riga LAT"]
[Date "2017.04.21"]
[Round "10.56"]
[White "Caglar, Sila"]
[Black "Worek, Joanna"]
[Result "0-1"]
[LiveChessVersion "1.4.8"]
[BlackElo "2330"]
[WhiteElo "2093"]
[ECO "B32"]
[TimeControl "40/5400:1800+30"]

1. e4 {[%clk 1:30:57]} c5 {[%clk 1:30:56]} 2. Nf3 {[%clk 1:31:20]} Nc6
{[%clk 1:31:21]} 3. d4 {[%clk 1:31:41]} cxd4 {[%clk 1:31:45]} 4. Nxd4
{[%clk 1:32:06]} Qb6 {[%clk 1:32:11]} 5. Nb3 {[%clk 1:32:17]} Nf6
{[%clk 1:32:34]} 6. Nc3 {[%clk 1:32:36]} e6 {[%clk 1:32:58]} 7. Be3
{[%clk 1:30:03]} Qc7 {[%clk 1:33:22]} 8. a3 {[%clk 1:27:31]} a6 {[%clk 1:33:42]}
9. g3 {[%clk 1:26:51]} b5 {[%clk 1:32:43]} 10. Bg2 {[%clk 1:25:08]} Bb7
{[%clk 1:32:57]} 11. O-O {[%clk 1:24:21]} Be7 {[%clk 1:31:16]} 12. f4
{[%clk 1:21:34]} d6 {[%clk 1:31:41]} 13. Qe2 {[%clk 1:11:29]} O-O
{[%clk 1:31:00]} 14. g4 {[%clk 1:08:50]} Rfe8 {[%clk 1:30:15]} 15. g5
{[%clk 1:04:37]} Nd7 {[%clk 1:30:37]} 16. Qf2 {[%clk 1:03:26]} Bf8
{[%clk 1:26:16]} 17. h4 {[%clk 0:52:26]} b4 {[%clk 1:23:49]} 18. axb4
{[%clk 0:50:20]} Nxb4 {[%clk 1:24:03]} 19. Na5 {[%clk 0:47:39]} Rac8
{[%clk 1:17:57]} 20. Nxb7 {[%clk 0:44:07]} Qxb7 {[%clk 1:18:24]} 21. Kh1
{[%clk 0:42:38]} Rc4 {[%clk 1:15:59]} 22. Rad1 {[%clk 0:38:32]} Nc6
{[%clk 0:50:06]} 23. Bc1 Nc5 {[%clk 0:45:24]} 24. Qe2 {[%clk 0:32:13]} Rd4
{[%clk 0:42:34]} 25. Rde1 {[%clk 0:30:28]} Rb4 {[%clk 0:39:44]} 26. b3
{[%clk 0:27:14]} Qc7 {[%clk 0:36:00]} 27. Ba3 {[%clk 0:25:12]} Rbb8
{[%clk 0:36:17]} 28. h5 {[%clk 0:18:55]} Nd4 {[%clk 0:32:50]} 29. Qd2
{[%clk 0:17:17]} Nb5 {[%clk 0:33:02]} 30. Nxb5 {[%clk 0:16:12]} axb5
{[%clk 0:33:13]} 31. Bb2 {[%clk 0:15:43]} Rbc8 {[%clk 0:22:51]} 32. Bf3
{[%clk 0:08:25]} e5 {[%clk 0:21:46]} 33. f5 {[%clk 0:08:19]} d5 {[%clk 0:21:43]}
34. exd5 {[%clk 0:06:12]} e4 {[%clk 0:22:08]} 35. Bg2 {[%clk 0:06:20]} Bd6
{[%clk 0:17:18]} 36. h6 {[%clk 0:05:31]} Be5 {[%clk 0:16:10]} 37. Bxe5
{[%clk 0:03:59]} Qxe5 {[%clk 0:16:31]} 38. hxg7 {[%clk 0:04:07]} e3
{[%clk 0:16:07]} 39. Qe2 {[%clk 0:04:07]} Ne4 {[%clk 0:15:37]} 40. Bxe4
{[%clk 0:31:50]} Qxe4+ {[%clk 0:45:57]} 41. Qg2 {[%clk 0:20:12]} Qh4+
{[%clk 0:41:38]} 42. Qh2 {[%clk 0:18:31]} Qe4+ {[%clk 0:29:50]} 43. Qg2
{[%clk 0:18:42]} Qd4 {[%clk 0:27:42]} 44. Re2 {[%clk 0:12:12]} Re4
{[%clk 0:27:26]} 45. Qf3 {[%clk 0:10:25]} Rh4+ {[%clk 0:26:26]} 46. Kg2
{[%clk 0:10:17]} Re8 {[%clk 0:23:42]} 47. c3 {[%clk 0:04:11]} Qxc3
{[%clk 0:22:44]} 48. Rh1 {[%clk 0:03:53]} Rxh1 {[%clk 0:21:08]} 49. Kxh1
{[%clk 0:04:22]} Qd4 {[%clk 0:17:22]} 50. Kg2 {[%clk 0:03:06]} Kxg7
{[%clk 0:17:44]} 51. Kh3 {[%clk 0:02:04]} Re5 {[%clk 0:13:51]} 52. d6
{[%clk 0:01:30]} b4 {[%clk 0:13:38]} 53. Qg3 {[%clk 0:00:56]} Qe4
{[%clk 0:08:36]} 54. Kh2 {[%clk 0:00:45]} Qd5 {[%clk 0:07:37]} 55. Kh3
{[%clk 0:00:33]} Rxf5 {[%clk 0:07:56]} 56. Rxe3 {[%clk 0:00:32]} Rxg5
{[%clk 0:08:13]} 57. Qf3 {[%clk 0:00:31]} Qxd6 {[%clk 0:08:28]} 58. Re4
{[%clk 0:00:38]} Qh6+ {[%clk 0:07:46]} 59. Rh4 {[%clk 0:00:58]} Qe6+
{[%clk 0:08:10]} 60. Kh2 {[%clk 0:01:20]} Qe1 {[%clk 0:06:46]} 61. Rg4
{[%clk 0:01:22]} Qd2+ {[%clk 0:07:00]} 62. Kh3 {[%clk 0:01:40]} h6
{[%clk 0:07:20]} 63. Qg3 {[%clk 0:01:48]} Kg6 {[%clk 0:07:17]} 64. Qf3
{[%clk 0:01:54]} Kg7 {[%clk 0:05:51]} 65. Qg3 {[%clk 0:02:08]} Qd5
{[%clk 0:05:33]} 66. Kh2 {[%clk 0:01:28]} Qd2+ {[%clk 0:05:57]} 67. Kh3
{[%clk 0:00:39]} Qd7 {[%clk 0:06:18]} 0-1

[Event "European Individual Women's Chess Championship 2017"]
[Site "Riga LAT"]
[Date "2017.04.21"]
[Round "10.57"]
[White "Movileanu, Daniela"]
[Black "Azimova, Karina"]
[Result "1/2-1/2"]
[LiveChessVersion "1.4.8"]
[BlackElo "2072"]
[WhiteElo "2213"]
[ECO "B03"]
[TimeControl "40/5400:1800+30"]

1. e4 {[%clk 1:30:58]} Nf6 {[%clk 1:30:56]} 2. e5 {[%clk 1:31:18]} Nd5
{[%clk 1:31:23]} 3. d4 {[%clk 1:31:37]} d6 {[%clk 1:31:50]} 4. c4
{[%clk 1:31:55]} Nb6 {[%clk 1:32:16]} 5. exd6 {[%clk 1:32:15]} cxd6
{[%clk 1:32:42]} 6. Nc3 {[%clk 1:32:31]} g6 {[%clk 1:33:08]} 7. Be3
{[%clk 1:32:48]} Bg7 {[%clk 1:33:33]} 8. Rc1 {[%clk 1:33:05]} O-O
{[%clk 1:33:57]} 9. b3 {[%clk 1:33:22]} Bf5 {[%clk 1:34:22]} 10. Be2
{[%clk 1:33:29]} d5 {[%clk 1:34:26]} 11. c5 {[%clk 1:33:08]} Nc8 {[%clk 1:34:52]}
12. Bf3 {[%clk 1:31:38]} e5 {[%clk 1:35:11]} 13. dxe5 {[%clk 1:26:15]} Nc6
{[%clk 1:33:45]} 14. g4 {[%clk 1:09:33]} Be6 {[%clk 1:30:03]} 15. Bxd5
{[%clk 0:45:02]} Nxe5 {[%clk 1:23:50]} 16. h3 {[%clk 0:37:34]} Qa5
{[%clk 1:12:32]} 17. Bxe6 {[%clk 0:29:55]} fxe6 {[%clk 1:12:14]} 18. Kf1
{[%clk 0:28:30]} Rd8 {[%clk 1:02:33]} 19. Qc2 {[%clk 0:26:29]} Nd3
{[%clk 0:46:17]} 20. Rd1 {[%clk 0:26:06]} Bxc3 {[%clk 0:46:28]} 21. Rxd3
{[%clk 0:26:28]} Qa6 {[%clk 0:46:29]} 22. Ke2 {[%clk 0:26:47]} Bf6
{[%clk 0:38:45]} 23. Nf3 {[%clk 0:23:16]} Ne7 {[%clk 0:32:59]} 24. Qc4
{[%clk 0:21:21]} Rxd3 {[%clk 0:32:35]} 25. Qxd3 {[%clk 0:20:10]} Qxa2+
{[%clk 0:32:54]} 26. Nd2 {[%clk 0:19:46]} Nd5 {[%clk 0:31:39]} 27. Kf3
{[%clk 0:17:57]} Rd8 {[%clk 0:28:25]} 28. Ne4 {[%clk 0:17:35]} Bh4
{[%clk 0:20:18]} 29. g5 {[%clk 0:13:10]} Rf8+ {[%clk 0:20:47]} 30. Kg4
{[%clk 0:11:55]} Nxe3+ {[%clk 0:20:50]} 31. Qxe3 {[%clk 0:12:11]} Bxf2
{[%clk 0:20:44]} 32. Nxf2 {[%clk 0:12:21]} Qxf2 {[%clk 0:20:27]} 33. Qxe6+
{[%clk 0:12:39]} Rf7 {[%clk 0:15:25]} 34. Qe8+ {[%clk 0:13:02]} Rf8
{[%clk 0:15:42]} 35. Qe6+ {[%clk 0:13:26]} Rf7 {[%clk 0:15:19]} 36. Qe8+
{[%clk 0:13:31]} Rf8 {[%clk 0:15:45]} 1/2-1/2

[Event "European Individual Women's Chess Championship 2017"]
[Site "Riga LAT"]
[Date "2017.04.21"]
[Round "10.58"]
[White "Baptista, Ana Filipa"]
[Black "Paramzina, Anastasya"]
[Result "0-1"]
[LiveChessVersion "1.4.8"]
[BlackElo "2202"]
[WhiteElo "2071"]
[ECO "B51"]
[TimeControl "40/5400:1800+30"]

1. e4 {[%clk 1:30:55]} c5 {[%clk 1:30:58]} 2. Nf3 {[%clk 1:31:12]} d6
{[%clk 1:31:25]} 3. Bb5+ {[%clk 1:31:18]} Nd7 {[%clk 1:31:14]} 4. O-O
{[%clk 1:28:24]} a6 {[%clk 1:30:21]} 5. Bxd7+ {[%clk 1:14:25]} Bxd7
{[%clk 1:30:17]} 6. e5 {[%clk 1:14:28]} Bg4 {[%clk 1:18:20]} 7. h3
{[%clk 0:48:50]} Bh5 {[%clk 1:17:18]} 8. Re1 {[%clk 0:48:06]} e6 {[%clk 0:51:32]}
9. d3 {[%clk 0:39:52]} Ne7 {[%clk 0:48:39]} 10. Nbd2 {[%clk 0:35:07]} Nc6
{[%clk 0:47:12]} 11. exd6 {[%clk 0:29:09]} Bxd6 {[%clk 0:47:22]} 12. Ne4
{[%clk 0:29:16]} Be7 {[%clk 0:37:10]} 13. Be3 {[%clk 0:26:58]} b6
{[%clk 0:15:58]} 14. Ng3 {[%clk 0:21:36]} Bg6 {[%clk 0:16:06]} 15. Bf4
{[%clk 0:18:07]} O-O {[%clk 0:15:48]} 16. Qd2 {[%clk 0:16:52]} Qd5
{[%clk 0:13:24]} 17. Bc7 {[%clk 0:12:57]} b5 {[%clk 0:13:30]} 18. a4
{[%clk 0:11:56]} Bf6 {[%clk 0:12:57]} 19. Qc1 {[%clk 0:08:43]} Rfc8
{[%clk 0:10:41]} 20. Bf4 {[%clk 0:09:03]} c4 {[%clk 0:07:17]} 21. dxc4
{[%clk 0:05:59]} Qxc4 {[%clk 0:07:23]} 22. axb5 {[%clk 0:05:13]} Nb4
{[%clk 0:06:15]} 23. b6 {[%clk 0:04:52]} Qb5 {[%clk 0:06:39]} 24. Bc7
{[%clk 0:03:25]} Nxc2 {[%clk 0:06:16]} 25. Ne4 {[%clk 0:02:52]} Bxe4
{[%clk 0:06:02]} 26. Rxe4 {[%clk 0:03:11]} Nxa1 {[%clk 0:06:28]} 27. Qxa1
{[%clk 0:03:11]} Bd8 {[%clk 0:05:58]} 28. Re5 {[%clk 0:02:31]} Qc6
{[%clk 0:04:04]} 29. Nd4 {[%clk 0:01:47]} Qb7 {[%clk 0:04:30]} 30. Nf5
{[%clk 0:02:02]} Bxc7 {[%clk 0:02:53]} 31. Nh6+ {[%clk 0:02:13]} gxh6
{[%clk 0:02:24]} 32. bxc7 {[%clk 0:02:35]} Qxc7 {[%clk 0:02:46]} 33. Re1
{[%clk 0:01:58]} Qf4 {[%clk 0:02:56]} 0-1

[Event "European Individual Women's Chess Championship 2017"]
[Site "Riga LAT"]
[Date "2017.04.21"]
[Round "10.59"]
[White "Pavlidou, Ekaterini"]
[Black "Grapsa, Georgia"]
[Result "1/2-1/2"]
[LiveChessVersion "1.4.8"]
[BlackElo "2049"]
[WhiteElo "2180"]
[ECO "E44"]
[TimeControl "40/5400:1800+30"]

1. d4 {[%clk 1:30:42]} Nf6 {[%clk 1:30:56]} 2. c4 {[%clk 1:30:57]} e6
{[%clk 1:31:23]} 3. Nc3 {[%clk 1:31:03]} Bb4 {[%clk 1:31:48]} 4. e3
{[%clk 1:31:09]} b6 {[%clk 1:32:13]} 5. Nge2 {[%clk 1:31:00]} Ne4
{[%clk 1:32:23]} 6. Qc2 {[%clk 1:29:36]} Bb7 {[%clk 1:32:41]} 7. f3
{[%clk 1:26:04]} Nxc3 {[%clk 1:32:55]} 8. Nxc3 {[%clk 1:25:37]} Qh4+
{[%clk 1:32:57]} 9. Qf2 {[%clk 1:20:00]} Bxc3+ {[%clk 1:32:53]} 10. bxc3
{[%clk 1:20:22]} Qxf2+ {[%clk 1:31:02]} 11. Kxf2 {[%clk 1:20:44]} d6
{[%clk 1:30:20]} 12. e4 {[%clk 1:19:52]} Nc6 {[%clk 1:29:11]} 13. Be3
{[%clk 1:16:26]} Ba6 {[%clk 1:28:30]} 14. Rb1 {[%clk 1:13:38]} O-O
{[%clk 1:14:34]} 15. Be2 {[%clk 1:12:11]} Na5 {[%clk 1:11:06]} 16. c5
{[%clk 1:11:08]} Bxe2 {[%clk 1:11:09]} 17. Kxe2 {[%clk 1:11:32]} dxc5
{[%clk 1:09:30]} 18. dxc5 {[%clk 1:11:28]} Nc4 {[%clk 1:07:43]} 19. Rb4
{[%clk 1:11:18]} Nxe3 {[%clk 1:04:56]} 20. Kxe3 {[%clk 1:11:41]} Rfd8
{[%clk 1:04:04]} 21. Rd4 {[%clk 1:08:19]} Kf8 {[%clk 1:01:37]} 22. Rhd1
{[%clk 0:59:39]} Ke7 {[%clk 0:53:56]} 23. Rxd8 {[%clk 0:58:03]} 1/2-1/2

[Event "European Individual Women's Chess Championship 2017"]
[Site "Riga LAT"]
[Date "2017.04.21"]
[Round "10.60"]
[White "Ozbay, Ece"]
[Black "Gueci, Tea"]
[Result "1/2-1/2"]
[LiveChessVersion "1.4.8"]
[BlackElo "2132"]
[WhiteElo "2035"]
[ECO "B11"]
[TimeControl "40/5400:1800+30"]

1. e4 {[%clk 1:30:48]} c6 {[%clk 1:30:56]} 2. Nc3 {[%clk 1:31:14]} d5
{[%clk 1:31:22]} 3. Nf3 {[%clk 1:31:39]} Bg4 {[%clk 1:31:47]} 4. h3
{[%clk 1:32:05]} Bxf3 {[%clk 1:32:12]} 5. Qxf3 {[%clk 1:32:30]} e6
{[%clk 1:32:35]} 6. d3 {[%clk 1:32:46]} g6 {[%clk 1:32:44]} 7. Bd2
{[%clk 1:32:56]} Bg7 {[%clk 1:33:08]} 8. g3 {[%clk 1:32:54]} Nd7 {[%clk 1:32:53]}
9. Bg2 {[%clk 1:33:01]} Ne7 {[%clk 1:32:06]} 10. O-O {[%clk 1:33:13]} O-O
{[%clk 1:31:12]} 11. Qe2 {[%clk 1:33:06]} Re8 {[%clk 1:27:41]} 12. f4
{[%clk 1:31:40]} Qb6+ {[%clk 1:20:51]} 13. Kh2 {[%clk 1:31:44]} Qxb2
{[%clk 1:20:27]} 14. Rab1 {[%clk 1:31:50]} Qa3 {[%clk 1:20:24]} 15. e5
{[%clk 1:19:04]} Qa6 {[%clk 1:11:23]} 16. Qf2 {[%clk 1:18:26]} b5
{[%clk 1:03:30]} 17. d4 {[%clk 1:18:09]} Nb6 {[%clk 0:59:19]} 18. g4
{[%clk 1:12:40]} Nc4 {[%clk 0:57:04]} 19. Bc1 {[%clk 1:11:35]} Qa5
{[%clk 0:48:24]} 20. Qg3 {[%clk 1:09:51]} Kh8 {[%clk 0:44:24]} 21. a3
{[%clk 1:06:28]} Rab8 {[%clk 0:38:32]} 22. h4 {[%clk 1:05:03]} b4 23. axb4
{[%clk 1:05:03]} Rxb4 24. Rxb4 {[%clk 1:05:03]} Qxb4 25. Bh3 {[%clk 1:05:03]} c5
26. Ne2 {[%clk 1:05:03]} cxd4 27. Nxd4 {[%clk 1:05:03]} Nd2 28. Rd1
{[%clk 1:05:03]} Ne4 29. Qe3 {[%clk 1:05:03]} Rc8 30. Bg2 {[%clk 1:05:03]} Nc3
31. Rd3 {[%clk 1:05:03]} Nb5 32. Nxb5 {[%clk 1:05:03]} Qxb5 33. Qxa7
{[%clk 1:05:03]} Rxc2 34. Qxe7 {[%clk 1:05:03]} h6 35. Ra3 {[%clk 1:05:03]} Qe2
36. Rg3 {[%clk 1:05:03]} Rxc1 37. Qxf7 {[%clk 1:05:03]} Qf2 38. h5
{[%clk 1:05:03]} gxh5 39. gxh5 {[%clk 1:05:03]} Rh1+ 40. Kxh1 {[%clk 1:05:03]}
Qxg3 41. Qxe6 {[%clk 1:05:03]} Qe1+ 42. Kh2 {[%clk 1:05:03]} Qh4+ 43. Kg1
{[%clk 1:05:03]} Qe1+ 1/2-1/2